{"text_format":"3","workbook":"xlsx","n_sheets":6,"sheets":["Zahájení","ŘídicíPanel","Výdaje a příjmy","Rozpočet","Seznamy dat","Kontingenční tabulka kategorií"],"not_rendered":{"charts":3,"defined_names":23,"pivot_tables":2},"read":"whole","date_system":"1900"}

{"sheet":"Zahájení","index":0,"n_rows":8,"n_cols":2,"rows_kept":8}
[null,"Informace o šabloně"]
[null,"Pomocí této šablony můžete vytvořit půlměsíční domácí rozpočet."]
[null,"List Řídicí panel obsahuje grafy měsíčních a ročních součtů a tabulku pro čtrnáctidenní Příjmy a výdaje."]
[null,"Na listu Seznamy dat zadejte kategorie a na listu Příjmy a výdaje zadejte hodnoty."]
[null,"Aktualizujte kontingenční tabulku na listu Rozpočet."]
[null,"Poznámka:"]
[null,"Ve sloupci A jsou na všech listech další pokyny. Tento text je záměrně skrytý. Pokud ho chcete odebrat, vyberte sloupec A a stiskněte klávesu DELETE. "]
[null,"Další informace o tabulce můžete získat tak, že v tabulce stisknete klávesy SHIFT a F10, vyberete možnost TABULKA a pak vyberete ALTERNATIVNÍ TEXT. V případě kontingenční tabulky stisknete klávesy SHIFT a F10, vyberete MOŽNOSTI KONTINGENČNÍ TABULKY a pak vyberete kartu ALTERNATIVNÍ TEXT."]

{"sheet":"ŘídicíPanel","index":1,"n_rows":12,"n_cols":15,"rows_kept":12,"merged":[[0,1,0,13],[1,2,1,7]]}
["Na tomto listu můžete vytvořit řídicí panel pro měsíční a roční součty a pro čtrnáctidenní příjmy a výdaje. V buňkách v tomto sloupci jsou užitečné pokyny k tomu, jak tento list používat. Název tohoto sešitu je v buňce na pravé straně a název listu v buňce O1.","Půlměsíční domácí rozpočet",{"$nulls":12},"ŘÍDICÍ PANEL"]
["Pokud chcete změnit měsíc v buňce vpravo, vyberte posuvník v buňce C2, pokud chcete změnit rok v buňce I2, vyberte posuvník v buňce J2.",{"$f":"CHOOSE(ČísloMěsíce,\"LEDEN\",\"ÚNOR\",\"BŘEZEN\",\"DUBEN\",\"KVĚTEN\",\"ČERVEN\",\"ČERVENEC\",\"SRPEN\",\"ZÁŘÍ\",\"ŘÍJEN\",\"LISTOPAD\",\"PROSINEC\")","v":"PROSINEC"},12,{"$nulls":5},2022]
["Popisek Měsíční součty je v buňce vpravo a popisek Součty za rok je v buňce I3.","MĚSÍČNÍ SOUČTY",{"$nulls":6},"ROČNÍ SOUČTY"]
["Pruhový graf porovnávající celkové měsíční příjmy a součty měsíčních výdajů je v buňce C4 a pruhový graf porovnávající roční součty příjmů a součty ročních výdajů je v buňce J4. Další pokyn je v buňce A8.","PŘÍJMY",null,{"$f":"MěsíčníCelkovéVýdaje","v":{"v":0,"d":"0 Kč"}},{"$nulls":4},"PŘÍJMY",null,null,{"$f":"RočníCelkovéVýdaje","v":{"v":10742,"d":"10,742 Kč"}}]
[null,"VÝDAJE",null,{"$f":"MěsíčníCelkovéPříjmy","v":{"v":0,"d":"0 Kč"}},{"$nulls":4},"VÝDAJE",null,null,{"$f":"RočníCelkovéPříjmy","v":{"v":13200,"d":"13,200 Kč"}}]
[]
[]
["Tabulka řídicího panelu, která začíná v buňce vpravo, se automaticky aktualizuje.","Kategorie","LEDEN","ÚNOR","BŘEZEN","DUBEN","KVĚTEN","ČERVEN","ČERVENEC","SRPEN","ZÁŘÍ","ŘÍJEN","LISTOPAD","PROSINEC","Minigraf"]
[null,"Příjem 1–15",{"$f":"SUMIFS(Příjmy[ČÁSTKA],Příjmy[DATUM],\"<=\"&ProstDat,Příjmy[DATUM],\">=\"&ZačDat)","v":{"v":0,"d":"0.00 Kč"}},{"$f":"SUMIFS(Příjmy[ČÁSTKA],Příjmy[DATUM],\"<=\"&ProstDat,Příjmy[DATUM],\">=\"&ZačDat)","v":{"v":0,"d":"0.00 Kč"}},{"$f":"SUMIFS(Příjmy[ČÁSTKA],Příjmy[DATUM],\"<=\"&ProstDat,Příjmy[DATUM],\">=\"&ZačDat)","v":{"v":1300,"d":"1,300.00 Kč"}},{"$f":"SUMIFS(Příjmy[ČÁSTKA],Příjmy[DATUM],\"<=\"&ProstDat,Příjmy[DATUM],\">=\"&ZačDat)","v":{"v":5700,"d":"5,700.00 Kč"}},{"$f":"SUMIFS(Příjmy[ČÁSTKA],Příjmy[DATUM],\"<=\"&ProstDat,Příjmy[DATUM],\">=\"&ZačDat)","v":{"v":500,"d":"500.00 Kč"}},{"$f":"SUMIFS(Příjmy[ČÁSTKA],Příjmy[DATUM],\"<=\"&ProstDat,Příjmy[DATUM],\">=\"&ZačDat)","v":{"v":0,"d":"0.00 Kč"}},{"$f":"SUMIFS(Příjmy[ČÁSTKA],Příjmy[DATUM],\"<=\"&ProstDat,Příjmy[DATUM],\">=\"&ZačDat)","v":{"v":0,"d":"0.00 Kč"}},{"$f":"SUMIFS(Příjmy[ČÁSTKA],Příjmy[DATUM],\"<=\"&ProstDat,Příjmy[DATUM],\">=\"&ZačDat)","v":{"v":0,"d":"0.00 Kč"}},{"$f":"SUMIFS(Příjmy[ČÁSTKA],Příjmy[DATUM],\"<=\"&ProstDat,Příjmy[DATUM],\">=\"&ZačDat)","v":{"v":0,"d":"0.00 Kč"}},{"$f":"SUMIFS(Příjmy[ČÁSTKA],Příjmy[DATUM],\"<=\"&ProstDat,Příjmy[DATUM],\">=\"&ZačDat)","v":{"v":0,"d":"0.00 Kč"}},{"$f":"SUMIFS(Příjmy[ČÁSTKA],Příjmy[DATUM],\"<=\"&ProstDat,Příjmy[DATUM],\">=\"&ZačDat)","v":{"v":0,"d":"0.00 Kč"}},{"$f":"SUMIFS(Příjmy[ČÁSTKA],Příjmy[DATUM],\"<=\"&ProstDat,Příjmy[DATUM],\">=\"&ZačDat)","v":{"v":0,"d":"0.00 Kč"}}]
[null,"Příjem 16 – konec měsíce",{"$f":"SUMIFS(Příjmy[ČÁSTKA],Příjmy[DATUM],\"<=\"&KoncDat,Příjmy[DATUM],\">=\"&ProstDat+1)","v":{"v":0,"d":"0.00 Kč"}},{"$f":"SUMIFS(Příjmy[ČÁSTKA],Příjmy[DATUM],\"<=\"&KoncDat,Příjmy[DATUM],\">=\"&ProstDat+1)","v":{"v":0,"d":"0.00 Kč"}},{"$f":"SUMIFS(Příjmy[ČÁSTKA],Příjmy[DATUM],\"<=\"&KoncDat,Příjmy[DATUM],\">=\"&ProstDat+1)","v":{"v":3100,"d":"3,100.00 Kč"}},{"$f":"SUMIFS(Příjmy[ČÁSTKA],Příjmy[DATUM],\"<=\"&KoncDat,Příjmy[DATUM],\">=\"&ProstDat+1)","v":{"v":2600,"d":"2,600.00 Kč"}},{"$f":"SUMIFS(Příjmy[ČÁSTKA],Příjmy[DATUM],\"<=\"&KoncDat,Příjmy[DATUM],\">=\"&ProstDat+1)","v":{"v":0,"d":"0.00 Kč"}},{"$f":"SUMIFS(Příjmy[ČÁSTKA],Příjmy[DATUM],\"<=\"&KoncDat,Příjmy[DATUM],\">=\"&ProstDat+1)","v":{"v":0,"d":"0.00 Kč"}},{"$f":"SUMIFS(Příjmy[ČÁSTKA],Příjmy[DATUM],\"<=\"&KoncDat,Příjmy[DATUM],\">=\"&ProstDat+1)","v":{"v":0,"d":"0.00 Kč"}},{"$f":"SUMIFS(Příjmy[ČÁSTKA],Příjmy[DATUM],\"<=\"&KoncDat,Příjmy[DATUM],\">=\"&ProstDat+1)","v":{"v":0,"d":"0.00 Kč"}},{"$f":"SUMIFS(Příjmy[ČÁSTKA],Příjmy[DATUM],\"<=\"&KoncDat,Příjmy[DATUM],\">=\"&ProstDat+1)","v":{"v":0,"d":"0.00 Kč"}},{"$f":"SUMIFS(Příjmy[ČÁSTKA],Příjmy[DATUM],\"<=\"&KoncDat,Příjmy[DATUM],\">=\"&ProstDat+1)","v":{"v":0,"d":"0.00 Kč"}},{"$f":"SUMIFS(Příjmy[ČÁSTKA],Příjmy[DATUM],\"<=\"&KoncDat,Příjmy[DATUM],\">=\"&ProstDat+1)","v":{"v":0,"d":"0.00 Kč"}},{"$f":"SUMIFS(Příjmy[ČÁSTKA],Příjmy[DATUM],\"<=\"&KoncDat,Příjmy[DATUM],\">=\"&ProstDat+1)","v":{"v":0,"d":"0.00 Kč"}}]
[null,"Výdaje 1–15",{"$f":"SUMIFS(Výdaje[ČÁSTKA],Výdaje[DATUM],\"<=\"&ProstDat+1,Výdaje[DATUM],\">=\"&ZačDat)","v":{"v":0,"d":"0.00 Kč"}},{"$f":"SUMIFS(Výdaje[ČÁSTKA],Výdaje[DATUM],\"<=\"&ProstDat+1,Výdaje[DATUM],\">=\"&ZačDat)","v":{"v":0,"d":"0.00 Kč"}},{"$f":"SUMIFS(Výdaje[ČÁSTKA],Výdaje[DATUM],\"<=\"&ProstDat+1,Výdaje[DATUM],\">=\"&ZačDat)","v":{"v":150,"d":"150.00 Kč"}},{"$f":"SUMIFS(Výdaje[ČÁSTKA],Výdaje[DATUM],\"<=\"&ProstDat+1,Výdaje[DATUM],\">=\"&ZačDat)","v":{"v":225,"d":"225.00 Kč"}},{"$f":"SUMIFS(Výdaje[ČÁSTKA],Výdaje[DATUM],\"<=\"&ProstDat+1,Výdaje[DATUM],\">=\"&ZačDat)","v":{"v":2642,"d":"2,642.00 Kč"}},{"$f":"SUMIFS(Výdaje[ČÁSTKA],Výdaje[DATUM],\"<=\"&ProstDat+1,Výdaje[DATUM],\">=\"&ZačDat)","v":{"v":0,"d":"0.00 Kč"}},{"$f":"SUMIFS(Výdaje[ČÁSTKA],Výdaje[DATUM],\"<=\"&ProstDat+1,Výdaje[DATUM],\">=\"&ZačDat)","v":{"v":0,"d":"0.00 Kč"}},{"$f":"SUMIFS(Výdaje[ČÁSTKA],Výdaje[DATUM],\"<=\"&ProstDat+1,Výdaje[DATUM],\">=\"&ZačDat)","v":{"v":0,"d":"0.00 Kč"}},{"$f":"SUMIFS(Výdaje[ČÁSTKA],Výdaje[DATUM],\"<=\"&ProstDat+1,Výdaje[DATUM],\">=\"&ZačDat)","v":{"v":0,"d":"0.00 Kč"}},{"$f":"SUMIFS(Výdaje[ČÁSTKA],Výdaje[DATUM],\"<=\"&ProstDat+1,Výdaje[DATUM],\">=\"&ZačDat)","v":{"v":0,"d":"0.00 Kč"}},{"$f":"SUMIFS(Výdaje[ČÁSTKA],Výdaje[DATUM],\"<=\"&ProstDat+1,Výdaje[DATUM],\">=\"&ZačDat)","v":{"v":0,"d":"0.00 Kč"}},{"$f":"SUMIFS(Výdaje[ČÁSTKA],Výdaje[DATUM],\"<=\"&ProstDat+1,Výdaje[DATUM],\">=\"&ZačDat)","v":{"v":0,"d":"0.00 Kč"}}]
[null,"Výdaje 16 – konec měsíce",{"$f":"SUMIFS(Výdaje[ČÁSTKA],Výdaje[DATUM],\"<=\"&KoncDat,Výdaje[DATUM],\">=\"&ProstDat+1)","v":{"v":0,"d":"0.00 Kč"}},{"$f":"SUMIFS(Výdaje[ČÁSTKA],Výdaje[DATUM],\"<=\"&KoncDat,Výdaje[DATUM],\">=\"&ProstDat+1)","v":{"v":1075,"d":"1,075.00 Kč"}},{"$f":"SUMIFS(Výdaje[ČÁSTKA],Výdaje[DATUM],\"<=\"&KoncDat,Výdaje[DATUM],\">=\"&ProstDat+1)","v":{"v":5200,"d":"5,200.00 Kč"}},{"$f":"SUMIFS(Výdaje[ČÁSTKA],Výdaje[DATUM],\"<=\"&KoncDat,Výdaje[DATUM],\">=\"&ProstDat+1)","v":{"v":1450,"d":"1,450.00 Kč"}},{"$f":"SUMIFS(Výdaje[ČÁSTKA],Výdaje[DATUM],\"<=\"&KoncDat,Výdaje[DATUM],\">=\"&ProstDat+1)","v":{"v":0,"d":"0.00 Kč"}},{"$f":"SUMIFS(Výdaje[ČÁSTKA],Výdaje[DATUM],\"<=\"&KoncDat,Výdaje[DATUM],\">=\"&ProstDat+1)","v":{"v":0,"d":"0.00 Kč"}},{"$f":"SUMIFS(Výdaje[ČÁSTKA],Výdaje[DATUM],\"<=\"&KoncDat,Výdaje[DATUM],\">=\"&ProstDat+1)","v":{"v":0,"d":"0.00 Kč"}},{"$f":"SUMIFS(Výdaje[ČÁSTKA],Výdaje[DATUM],\"<=\"&KoncDat,Výdaje[DATUM],\">=\"&ProstDat+1)","v":{"v":0,"d":"0.00 Kč"}},{"$f":"SUMIFS(Výdaje[ČÁSTKA],Výdaje[DATUM],\"<=\"&KoncDat,Výdaje[DATUM],\">=\"&ProstDat+1)","v":{"v":0,"d":"0.00 Kč"}},{"$f":"SUMIFS(Výdaje[ČÁSTKA],Výdaje[DATUM],\"<=\"&KoncDat,Výdaje[DATUM],\">=\"&ProstDat+1)","v":{"v":0,"d":"0.00 Kč"}},{"$f":"SUMIFS(Výdaje[ČÁSTKA],Výdaje[DATUM],\"<=\"&KoncDat,Výdaje[DATUM],\">=\"&ProstDat+1)","v":{"v":0,"d":"0.00 Kč"}},{"$f":"SUMIFS(Výdaje[ČÁSTKA],Výdaje[DATUM],\"<=\"&KoncDat,Výdaje[DATUM],\">=\"&ProstDat+1)","v":{"v":0,"d":"0.00 Kč"}}]

{"sheet":"Výdaje a příjmy","index":2,"n_rows":36,"n_cols":9,"rows_kept":36,"merged":[[0,1,0,6],[0,7,0,8]]}
["Na tomto listu vytvořte seznam příjmů a výdajů. V buňkách v tomto sloupci jsou užitečné pokyny k tomu, jak tento list používat. Název sešitu je v buňce na pravé straně a název listu je v buňce H1.",{"$f":"Semi_Monthly_Home_Budget_Title","v":"Půlměsíční domácí rozpočet"},{"$nulls":5},"PŘÍJMY A VÝDAJE"]
["Popisek Příjmy je v buňce vpravo a popisek Výdaje v buňce F2.","PŘÍJMY",{"$nulls":3},"VÝDAJE"]
["Zadejte podrobnosti do tabulky Příjmy, která začíná v buňce napravo, a do tabulky Výdaje, která začíná v buňce F3.","DATUM","POPIS","ČÁSTKA",null,"DATUM","KATEGORIE","POPIS","ČÁSTKA"]
[null,{"$f":"TODAY()","v":"2022-05-13"},"Bonus",{"v":500,"d":"500.00 Kč"},null,{"$f":"TODAY()","v":"2022-05-13"},"Zdravotní péče","Pojištění",{"v":500,"d":"500.00 Kč"}]
[null,{"$f":"TODAY()-14","v":"2022-04-29"},"Výplata Jakub",{"v":1300,"d":"1,300.00 Kč"},null,{"$f":"TODAY()-7","v":"2022-05-06"},"Domácnost","Hypotéka",{"v":1000,"d":"1,000.00 Kč"}]
[null,{"$f":"TODAY()-14","v":"2022-04-29"},"Výplata Lenka",{"v":1300,"d":"1,300.00 Kč"},null,"2022-05-06","Domácnost","Elektřina",{"v":100,"d":"100.00 Kč"}]
[null,{"$f":"TODAY()-28","v":"2022-04-15"},"Výplata Jakub",{"v":1500,"d":"1,500.00 Kč"},null,"2022-05-06","Domácnost","Vodné/stočné",{"v":50,"d":"50.00 Kč"}]
[null,{"$f":"TODAY()-28","v":"2022-04-15"},"Výplata Lenka",{"v":1600,"d":"1,600.00 Kč"},null,"2022-05-06","Domácnost","Odpady",{"v":25,"d":"25.00 Kč"}]
[null,{"$f":"TODAY()-42","v":"2022-04-01"},"Výplata Jakub",{"v":1300,"d":"1,300.00 Kč"},null,"2022-05-06","Domácnost","Mobilní telefon",{"v":100,"d":"100.00 Kč"}]
[null,{"$f":"TODAY()-42","v":"2022-04-01"},"Výplata Lenka",{"v":1300,"d":"1,300.00 Kč"},null,"2022-05-06","Domácnost","Mobilní telefon",{"v":30,"d":"30.00 Kč"}]
[null,{"$f":"TODAY()-56","v":"2022-03-18"},"Výplata Jakub",{"v":1500,"d":"1,500.00 Kč"},null,"2022-05-06","Domácnost","Hypotéka",{"v":50,"d":"50.00 Kč"}]
[null,{"$f":"TODAY()-56","v":"2022-03-18"},"Výplata Lenka",{"v":1600,"d":"1,600.00 Kč"},null,"2022-05-06","Domácnost","Mobilní telefon",{"v":50,"d":"50.00 Kč"}]
[null,{"$f":"TODAY()-70","v":"2022-03-04"},"Výplata Jakub",{"v":1300,"d":"1,300.00 Kč"},null,{"$f":"TODAY()-7","v":"2022-05-06"},"Domácnost","Mobilní telefon",{"v":25,"d":"25.00 Kč"}]
[{"$nulls":5},{"$f":"TODAY()-8","v":"2022-05-05"},"Domácnost","Elektřina",{"v":100,"d":"100.00 Kč"}]
[{"$nulls":5},{"$f":"TODAY()-9","v":"2022-05-04"},"Zábava","Filmy",{"v":37,"d":"37.00 Kč"}]
[{"$nulls":5},{"$f":"TODAY()-10","v":"2022-05-03"},"Jídlo","Nákupy potravin",{"v":350,"d":"350.00 Kč"}]
[{"$nulls":5},{"$f":"TODAY()-11","v":"2022-05-02"},"Jídlo","Večeře v restauraci",{"v":75,"d":"75.00 Kč"}]
[{"$nulls":5},{"$f":"TODAY()-12","v":"2022-05-01"},"Děti","Platba za obědy",{"v":150,"d":"150.00 Kč"}]
[{"$nulls":5},{"$f":"TODAY()-13","v":"2022-04-30"},"Investiční účty","Spoření",{"v":250,"d":"250.00 Kč"}]
[{"$nulls":5},{"$f":"TODAY()-14","v":"2022-04-29"},"Investiční účty","Investiční účet",{"v":250,"d":"250.00 Kč"}]
[{"$nulls":5},{"$f":"TODAY()-15","v":"2022-04-28"},"Osobní","Zdraví/fitness",{"v":100,"d":"100.00 Kč"}]
[{"$nulls":5},{"$f":"TODAY()-16","v":"2022-04-27"},"Domácí zvířata","Jídlo",{"v":50,"d":"50.00 Kč"}]
[{"$nulls":5},{"$f":"TODAY()-20","v":"2022-04-23"},"Domácí zvířata","Péče o vzhled",{"v":50,"d":"50.00 Kč"}]
[{"$nulls":5},{"$f":"TODAY()-20","v":"2022-04-23"},"Domácí zvířata","Jiné",{"v":50,"d":"50.00 Kč"}]
[{"$nulls":5},{"$f":"TODAY()-25","v":"2022-04-18"},"Doprava","Platba za auto 1 ",{"v":300,"d":"300.00 Kč"}]
[{"$nulls":5},{"$f":"TODAY()-25","v":"2022-04-18"},"Doprava","Platba za auto 2 ",{"v":350,"d":"350.00 Kč"}]
[{"$nulls":5},{"$f":"TODAY()-25","v":"2022-04-18"},"Doprava","Pojištění auta",{"v":50,"d":"50.00 Kč"}]
[{"$nulls":5},{"$f":"TODAY()-30","v":"2022-04-13"},"Doprava","Benzín",{"v":50,"d":"50.00 Kč"}]
[{"$nulls":5},{"$f":"TODAY()-31","v":"2022-04-12"},"Doprava","Benzín",{"v":25,"d":"25.00 Kč"}]
[{"$nulls":5},{"$f":"TODAY()-42","v":"2022-04-01"},"Doprava","Platba za auto 2 ",{"v":150,"d":"150.00 Kč"}]
[{"$nulls":5},{"$f":"TODAY()-45","v":"2022-03-29"},"Domácnost","Hypotéka",{"v":5000,"d":"5,000.00 Kč"}]
[{"$nulls":5},{"$f":"TODAY()-50","v":"2022-03-24"},"Domácnost","Elektřina",{"v":200,"d":"200.00 Kč"}]
[{"$nulls":5},{"$f":"TODAY()-65","v":"2022-03-09"},"Domácnost","Mobilní telefon",{"v":100,"d":"100.00 Kč"}]
[{"$nulls":5},{"$f":"TODAY()-70","v":"2022-03-04"},"Domácnost","Odpady",{"v":50,"d":"50.00 Kč"}]
[{"$nulls":5},{"$f":"TODAY()-75","v":"2022-02-27"},"Domácnost","Hypotéka",{"v":1000,"d":"1,000.00 Kč"}]
[{"$nulls":5},{"$f":"TODAY()-78","v":"2022-02-24"},"Zábava","Filmy",{"v":75,"d":"75.00 Kč"}]

{"sheet":"Rozpočet","index":3,"n_rows":26,"n_cols":6,"rows_kept":26,"merged":[[0,1,0,4],[1,1,1,3],[4,3,4,5]]}
["Na tomto listu si můžete vytvořit rozpočet. V buňkách v tomto sloupci jsou užitečné pokyny k tomu, jak tento list používat. Název sešitu je v buňce na pravé straně a název listu je v buňce F1.",{"$f":"Semi_Monthly_Home_Budget_Title","v":"Půlměsíční domácí rozpočet"},{"$nulls":3},"ROZPOČET"]
["Vyberte Roky, Čtvrtletí, Měsíce nebo Dny a pomocí posuvníku v buňce vpravo nastavte kontingenční tabulku Výdaje pro vybrané období. Průřez kategorií pro filtrování dat kontingenční tabulky je v buňce E2 a průřez popisu je v buňce F2.","Časová osa, kterou jde filtrovat, je v této buňce.",null,null,"V této buňce je průřez pro filtrování dat kontingenční tabulky podle kategorie.","V této buňce je průřez k filtrování dat kontingenční tabulky podle popisu."]
["V buňce napravo je k dispozici tip.","Stiskněte Shift+F10 v kontingenční tabulce Výdaje a pak vyberte Aktualizovat, aby se data na tomto listu aktualizovala, nebo vyberte Aktualizovat na kartě Analýza."]
["V buňce vpravo je popisek Výdaje.","VÝDAJE"]
["Kontingenční tabulka zobrazující výdaje začíná v buňce vpravo. Popisek Součet kategorií je v buňce D4.","Popisky řádků","Součet z ČÁSTKA","SOUČTY KATEGORIÍ"]
["Výsečový graf, který porovnává součet jednotlivých kategorií, je v buňce D6.","Platba za auto 1 ",{"v":300,"d":"300.00 Kč"}]
[null,"Platba za auto 2 ",{"v":500,"d":"500.00 Kč"}]
[null,"Benzín",{"v":75,"d":"75.00 Kč"}]
[null,"Elektřina",{"v":400,"d":"400.00 Kč"}]
[null,"Filmy",{"v":112,"d":"112.00 Kč"}]
[null,"Hypotéka",{"v":7050,"d":"7,050.00 Kč"}]
[null,"Investiční účet",{"v":250,"d":"250.00 Kč"}]
[null,"Jídlo",{"v":50,"d":"50.00 Kč"}]
[null,"Jiné",{"v":50,"d":"50.00 Kč"}]
[null,"Mobilní telefon",{"v":305,"d":"305.00 Kč"}]
[null,"Odpady",{"v":75,"d":"75.00 Kč"}]
[null,"Péče o vzhled",{"v":50,"d":"50.00 Kč"}]
[null,"Platba za obědy",{"v":150,"d":"150.00 Kč"}]
[null,"Pojištění",{"v":500,"d":"500.00 Kč"}]
[null,"Pojištění auta",{"v":50,"d":"50.00 Kč"}]
[null,"Spoření",{"v":250,"d":"250.00 Kč"}]
[null,"Večeře v restauraci",{"v":75,"d":"75.00 Kč"}]
[null,"Vodné/stočné",{"v":50,"d":"50.00 Kč"}]
[null,"Zdraví/fitness",{"v":100,"d":"100.00 Kč"}]
[null,"Nákupy potravin",{"v":350,"d":"350.00 Kč"}]
[null,"Celkový součet",{"v":10742,"d":"10,742.00 Kč"}]

{"sheet":"Seznamy dat","index":4,"n_rows":8,"n_cols":13,"rows_kept":8,"merged":[[0,1,0,11]]}
["Zadejte do tohoto listu data Kategorie, která slouží k vyplnění rozevíracích seznamů v tabulce Výdaje na listu Výdaje a příjmy. Pokud chcete seznamy aktualizovat, upravte názvy kategorií nebo popisy pod každou kategorií. V buňkách v tomto sloupci jsou užitečné pokyny k tomu, jak tento list používat. Název sešitu je v buňce na pravé straně a název listu je v buňce M1.",{"$f":"Semi_Monthly_Home_Budget_Title","v":"Půlměsíční domácí rozpočet"},{"$nulls":10},"SEZNAMY DAT"]
["V buňce napravo je k dispozici tip.","SETUP         Data Kategorie níže slouží k vyplnění rozevíracích seznamů v tabulce Výdaje na listu Výdaje a příjmy. Pokud chcete seznamy aktualizovat, upravte názvy kategorií nebo popisy pod každou kategorií."]
["Zadejte nebo změňte názvy nebo popisy kategorií pod každou kategorií v tabulce počínaje buňkou vpravo.","Domácnost","Zábava","Jídlo","Dary/příspěvky","Děti","Investiční účty","Zdravotní péče","Jiné","Osobní","Domácí zvířata","Daně a právní výdaje","Doprava"]
[null,"Hypotéka","Filmy","Nákupy potravin","Charita 1","Oblečení","Penzijní připojištění","Doktor/klinika","Jiné","Oblečení","Jídlo","Daně z příjmů","Platba za auto 1 "]
[null,"Elektřina","Video/filmy","Večeře v restauraci","Charita 2","Hračky/hry","Spoření","Pojištění","Organizační poplatky","Kadeřnictví/manikúra","Domácí potřeby","Daně z nemovitostí","Platba za auto 2 "]
[null,"Vodné/stočné","Hudba",null,"Charita 3","Platba za obědy","Běžný účet",null,null,"Čistírna","Zdravotní péče","Silniční daň","Pojištění auta"]
[null,"Odpady","Koncerty/divadlo",null,"Dárek","Příspěvky/poplatky","Penzijní spoření",null,null,"Zdraví/fitness","Péče o vzhled","Jiné","Licence/registrace"]
[null,"Mobilní telefon","Sportovní akce",null,null,"Školní pomůcky","Investiční účet",null,null,"Nákupy","Jiné","Advokát","Benzín"]

{"sheet":"Kontingenční tabulka kategorií","index":5,"n_rows":13,"n_cols":13,"rows_kept":13,"hidden":true}
[null,"Půlměsíční domácí rozpočet",{"$nulls":10},"KONTINGENČNÍ TABULKA KATEGORIÍ"]
[null,"Tato kontingenční tabulka je zdroj dat pro kontingenční graf Součty kategorií v rozpočtu. "]
[null,"Popisky řádků","Součet z ČÁSTKA"]
[null,"Děti",{"v":150,"d":"150 Kč"}]
[null,"Domácí zvířata",{"v":150,"d":"150 Kč"}]
[null,"Investiční účty",{"v":500,"d":"500 Kč"}]
[null,"Domácnost",{"v":7880,"d":"7,880 Kč"}]
[null,"Jídlo",{"v":425,"d":"425 Kč"}]
[null,"Osobní",{"v":100,"d":"100 Kč"}]
[null,"Zábava",{"v":112,"d":"112 Kč"}]
[null,"Zdravotní péče",{"v":500,"d":"500 Kč"}]
[null,"Doprava",{"v":925,"d":"925 Kč"}]
[null,"Celkový součet",{"v":10742,"d":"10,742 Kč"}]